bitfinex/quotes_ETHUSD_20240731
["timestamp","ask_amount","ask_price","bid_price","bid_amount"]
[1722434261012,3.820179,3337.8,3337.4,0.2]
[1722434261209,2.9962,3337.6,3337.4,0.2]
[1722434261715,2.99625,3337.5,3337.4,0.2]
[1722434262379,8.4677,3337.5,3337.4,0.2]
[1722434262564,11.46395,3337.5,3337.4,0.2]
[1722434262763,12.8802819,3337.5,3337.4,0.2]
[1722434262968,16.4302819,3337.5,3337.4,0.2]
[1722434263605,16.56111873,3337.5,3337.4,0.2]
[1722434263996,16.4302819,3337.5,3337.4,0.2]
[1722434264223,13.01486554,3337.5,3337.4,0.2]
[1722434264448,12.8840319,3337.5,3337.4,0.2]
[1722434264809,15.07283902,3337.5,3337.4,0.2]
[1722434265015,12.8840319,3337.5,3337.4,0.2]
[1722434265203,18.06908902,3337.5,3337.4,0.2]
[1722434265505,12.8840319,3337.5,3337.4,0.2]
[1722434266127,15.07301307,3337.5,3337.4,0.2]
[1722434266343,15.20384496,3337.5,3337.4,0.2]
[1722434266500,15.07301307,3337.5,3337.4,0.2]
[1722434266921,9.8877819,3337.5,3337.4,0.2]
[1722434267136,2.4752,3337.5,3337.4,0.2]
[1722434267614,5.47145,3337.5,3337.4,0.2]
[1722434267935,8.4677,3337.5,3337.4,0.2]
[1722434270180,7.34822086,3337.5,3337.4,0.2]
[1722434270362,2.4752,3337.5,3337.4,0.2]
[1722434270680,1.87677086,3337.6,3337.4,0.2]
[1722434270843,1.87677086,3337.7,3337.4,0.2]
[1722434271172,2.56054445,3337.7,3337.4,0.2]
[1722434271473,2.99625,3337.5,3337.4,0.2]
[1722434271772,5.9925,3337.5,3337.4,0.2]
[1722434271935,2.99625,3337.5,3337.4,0.2]
[1722434272133,5.9925,3337.5,3337.4,0.2]
[1722434272380,6.87916678,3337.5,3337.4,0.2]
[1722434272673,9.17436678,3337.5,3337.4,0.2]
[1722434272876,11.36525037,3337.5,3337.4,0.2]
[1722434273259,15.30144319,3337.5,3337.4,0.2]
[1722434273442,17.88884638,3337.5,3337.4,0.2]
[1722434273677,15.30144319,3337.5,3337.4,0.2]
[1722434274639,18.84769319,3337.5,3337.4,0.2]
[1722434275183,15.85144319,3337.5,3337.4,0.2]
[1722434275360,18.71686678,3337.5,3337.4,0.2]
[1722434275567,21.94706264,3337.5,3337.4,0.2]
[1722434276686,5.9943,3336.5,3336.4,7.28]
[1722434276891,2.99743,3336.2,3335.5,10.526]
[1722434277041,4.87759292,3336.1,3335.5,10.526]
[1722434277240,2.9976,3336.0,3335.5,10.526]
[1722434277481,1.88003292,3335.9,3335.5,0.6]
[1722434277685,1.88003292,3335.7,3335.5,0.6]
[1722434278151,2.99796,3335.6,3335.5,0.6]
[1722434279664,5.99592,3335.6,3335.5,0.6]
[1722434279837,2.99796,3335.6,3335.5,0.6]
[1722434280037,5.99592,3335.6,3335.5,0.6]
[1722434280246,2.99796,3335.6,3335.5,0.6]
[1722434281283,5.19226461,3335.6,3335.5,0.6]
[1722434281582,2.99796,3335.6,3335.5,0.6]
[1722434282986,4.87781905,3335.6,3335.5,0.6]
[1722434283203,2.99796,3335.6,3335.5,0.6]
[1722434283541,5.36205,3335.7,3335.5,0.6]
[1722434283759,1.87989361,3335.6,3335.5,0.6]
[1722434283959,1.87989361,3335.7,3335.5,0.6]
[1722434284204,1.87989361,3335.9,3335.5,4.129]
[1722434284342,1.87989361,3336.1,3335.6,0.4728527]
[1722434284691,1.87984613,3336.2,3335.6,0.4129]
[1722434284854,1.87984613,3336.3,3335.7,0.05995131]
[1722434285051,1.87984613,3336.3,3335.6,0.4129]
[1722434285258,1.87984613,3336.2,3335.6,0.47285131]
[1722434285486,1.87984613,3336.2,3335.7,0.46018513]
[1722434285689,1.87984613,3336.5,3335.9,3.529]
[1722434286060,1.87984613,3336.6,3335.9,3.529]
[1722434286261,2.99689,3336.8,3335.9,3.529]
[1722434286262,1.87984613,3336.5,3335.9,3.529]
[1722434286578,1.8804318,3336.5,3336.0,0.05994608]
[1722434286766,1.8804318,3336.6,3336.1,0.65866661]
[1722434287594,1.8804318,3336.6,3336.1,0.71861264]
[1722434287890,9.6038371,3336.9,3336.1,3.71611264]
[1722434287891,1.88036476,3336.7,3336.1,3.71611264]
[1722434288095,1.88036476,3336.8,3336.3,3.529]
[1722434288309,1.88036476,3336.9,3336.3,3.58893878]
[1722434288589,10.40643,3337.3,3336.4,0.65100054]
[1722434288590,1.88036476,3336.8,3336.4,0.65100054]
[1722434289112,1.88036476,3337.1,3336.5,0.05993942]
[1722434289869,1.88036476,3337.0,3336.5,0.05993942]
[1722434290188,1.88036476,3337.1,3336.5,3.05707942]
[1722434290395,1.88036476,3337.0,3336.5,3.05707942]
[1722434290594,1.88036476,3337.0,3336.6,1.023431]
[1722434290769,9.60375889,3337.3,3336.8,3.529]
[1722434290770,1.88036476,3337.1,3336.8,3.529]
[1722434290951,1.88003415,3337.4,3336.9,2.4128]
[1722434291153,0.375,3337.9,3337.3,3.529]
[1722434291154,1.88003415,3337.7,3337.3,3.529]
[1722434291375,0.375,3337.9,3337.4,0.05992143]
[1722434291376,2.25503415,3337.9,3337.4,0.05992143]
[1722434291671,0.375,3337.9,3337.4,2.99628]
[1722434291867,0.375,3337.9,3337.8,3.529]
[1722434292298,0.375,3337.9,3337.8,6.52498]
[1722434293491,0.375,3337.9,3337.8,3.529]
[1722434293740,0.375,3337.9,3337.8,4.24757797]
[1722434293907,0.375,3337.9,3337.8,7.24355797]
[1722434295949,0.375,3337.9,3337.8,10.17962661]
[1722434296112,0.375,3337.9,3337.8,16.72560661]
[1722434296501,0.375,3337.9,3337.8,13.72962661]
[1722434297864,0.375,3337.9,3337.8,10.18364661]
[1722434298026,0.375,3337.9,3337.8,7.18766661]
[1722434298409,0.375,3337.9,3337.8,10.18364661]
[1722434298614,0.375,3337.9,3337.8,13.17962661]
[1722434299565,0.375,3337.9,3337.8,13.72962661]
[1722434299923,0.375,3337.9,3337.8,13.92962661]
[1722434300125,0.375,3337.9,3337.8,16.92560661]
[1722434301759,2.4511,3339.7,3338.6,2.99526]
[1722434301942,0.544521,3339.6,3338.6,6.52426]
[1722434302253,2.4511,3339.7,3338.6,6.52426]
[1722434302462,2.4511,3339.7,3338.6,3.529]
[1722434302614,2.99442,3339.6,3338.6,3.529]
[1722434302815,2.99446,3339.5,3338.6,3.529]
[1722434303013,3.838443,3339.5,3338.6,3.529]
[1722434303553,0.843983,3339.5,3338.6,3.529]
[1722434303726,2.4511,3339.7,3338.7,0.05989343]
[1722434305133,2.4511,3339.7,3338.6,6.52424]
[1722434305134,2.4511,3339.7,3338.8,3.05492345]
[1722434306134,9.8975,3340.3,3339.1,3.529]
[1722434306481,12.89129,3340.3,3339.2,0.71088536]
[1722434306773,2.99421,3339.8,3339.1,3.529]
[1722434307072,2.99421,3339.8,3338.7,3.0]
[1722434307073,2.99409,3340.0,3339.2,0.05989196]
[1722434307491,2.9942,3339.8,3338.7,6.529]
[1722434307786,2.9942,3339.8,3338.8,0.6529]
[1722434308081,2.99466,3339.3,3338.2,3.529]
[1722434308284,2.99466,3339.3,3338.3,3.0]
[1722434308435,2.99478,3339.2,3338.3,3.0]
[1722434308642,2.99483,3339.1,3338.2,3.529]
[1722434308840,2.4753,3339.4,3338.3,0.57851]
[1722434309040,2.4753,3339.4,3338.2,3.529]
[1722434309041,2.99491,3339.0,3338.2,3.529]
[1722434309241,2.99491,3339.0,3338.0,2.641]
[1722434309763,2.99475,3339.2,3338.0,2.641]
[1722434309975,2.99475,3339.2,3338.0,5.63672]
[1722434310578,2.99475,3339.2,3338.0,2.641]
[1722434310785,2.9949,3339.0,3338.0,4.31543154]
[1722434311150,0.547005,3339.1,3338.0,4.31543154]
[1722434311452,0.547005,3339.1,3338.0,1.67443154]
[1722434311646,2.99491,3339.0,3338.0,1.67443154]
[1722434312190,0.547005,3339.1,3338.0,4.67019154]
[1722434312394,0.547005,3339.1,3338.1,0.55976971]
[1722434312579,0.547005,3339.1,3338.0,1.67443154]
[1722434312892,2.99514,3338.8,3338.0,1.67443154]
[1722434313298,2.99527,3338.6,3337.8,3.922]
[1722434313460,2.4295,3338.7,3337.8,3.922]
[1722434314291,10.4049,3339.0,3337.9,2.99586]
[1722434314592,7.41,3339.0,3338.0,2.99579]
[1722434314893,7.41,3339.0,3338.1,0.991365]
[1722434315944,10.40492,3339.0,3338.1,0.991365]
[1722434316150,7.41,3339.0,3338.1,0.991365]
[1722434316369,5.37748,3339.2,3338.1,0.991365]
[1722434316572,2.99508,3338.9,3337.8,3.922]
[1722434316958,2.99509,3338.8,3337.8,3.922]
[1722434317160,5.37746,3339.2,3338.0,2.99579]
[1722434317761,5.37744,3339.2,3338.1,0.05990676]
[1722434317984,8.36264829,3339.2,3338.1,1.05727444]
[1722434318300,2.3827,3339.2,3338.3,2.99553]
[1722434318505,2.4894,3339.7,3338.4,0.05990146]
[1722434318671,2.4894,3339.7,3338.6,2.99526]
[1722434318851,2.4894,3339.7,3338.7,0.36540924]
[1722434319057,5.48368,3339.7,3338.8,0.05989309]
[1722434319857,2.4894,3339.7,3338.8,0.05989309]
[1722434321191,7.41,3340.0,3338.8,2.995]
[1722434321192,10.40406,3340.0,3338.8,2.995]
[1722434321374,2.9941,3339.9,3338.8,2.995]
[1722434321553,7.41,3340.0,3338.8,2.995]
[1722434321554,7.41,3340.0,3338.9,0.74214131]
[1722434321755,5.32998,3340.1,3339.0,6.5169]
[1722434322598,2.336,3340.1,3339.1,3.05468629]
[1722434322955,7.41,3340.3,3339.2,2.99467]
[1722434323157,7.41,3340.3,3339.3,3.05450342]
[1722434323399,7.41,3340.3,3339.4,0.60491734]
[1722434323834,7.41,3340.3,3339.4,3.59944734]
[1722434324056,7.41,3340.3,3339.4,0.60491734]
[1722434324057,2.99384,3340.2,3339.4,0.60491734]
[1722434324197,2.99384,3340.2,3339.1,3.0]
[1722434324390,2.99401,3340.0,3339.1,3.0]
[1722434324591,2.99392,3340.1,3339.1,3.0]
[1722434325633,10.40378,3340.3,3339.1,3.0]
[1722434325838,2.99389,3340.2,3339.1,3.0]
[1722434325994,2.99397,3340.1,3339.2,1.26024316]
[1722434326193,10.40378,3340.3,3339.2,1.26024316]
[1722434326644,2.99393,3340.1,3339.2,1.26024316]
[1722434326867,10.40378,3340.3,3339.2,1.26024316]
[1722434327141,2.99394,3340.1,3339.2,1.26024316]
[1722434327297,2.99394,3340.1,3339.3,0.64485693]
[1722434327496,7.41,3340.3,3339.1,3.0]
[1722434327497,2.99402,3340.0,3339.1,3.0]
[1722434327720,2.99402,3340.0,3339.0,3.522]
[1722434327997,5.27156,3339.8,3338.6,2.3666]
[1722434328228,2.99428,3339.7,3338.6,5.36186]
[1722434328389,2.99428,3339.7,3338.7,1.187929]
[1722434328796,2.99437,3339.6,3338.7,1.187929]
[1722434329545,2.99451,3339.5,3338.7,1.187929]
[1722434329898,2.9943,3339.7,3338.7,1.187929]
[1722434330295,2.99446,3339.5,3338.7,1.187929]
[1722434330621,2.9943,3339.7,3338.7,1.187929]
[1722434330996,2.99437,3339.6,3338.7,1.187929]
[1722434331200,2.2773,3339.8,3338.8,1.0705229]
[1722434331420,5.27149,3339.8,3338.8,1.0705229]
[1722434331620,8.26576,3339.8,3338.8,1.0705229]
[1722434331822,5.27149,3339.8,3338.8,1.0705229]
[1722434332345,5.27149,3339.8,3338.9,0.70657729]
[1722434332642,2.99433,3339.7,3338.9,0.70657729]
[1722434333001,2.99433,3339.7,3338.6,3.0]
[1722434333401,2.99433,3339.7,3338.6,8.63524]
[1722434334501,2.99437,3339.6,3339.0,0.2]
[1722434335025,2.99446,3339.5,3339.0,0.2]
[1722434335201,2.99469,3339.3,3339.0,0.2]
[1722434335402,1.87954373,3339.2,3339.0,0.2]
[1722434335617,1.87954373,3339.1,3339.0,0.2]
[1722434336030,2.99481,3339.1,3339.0,0.2]
[1722434336231,1.88237345,3339.1,3339.0,0.2]
[1722434336452,1.88379801,3339.1,3339.0,0.2]
[1722434336603,1.88379801,3339.3,3339.0,0.2]
[1722434336952,1.88379801,3339.5,3339.0,0.78950653]
[1722434337275,2.99434,3339.7,3339.0,0.78950653]
[1722434337416,1.88348193,3339.3,3339.0,0.2]
[1722434337929,1.88348193,3339.2,3339.0,0.2]
[1722434338131,1.88348193,3339.3,3339.0,0.2]
[1722434339548,1.88348193,3339.5,3339.0,3.1949]
[1722434339732,1.88348193,3339.5,3339.2,2.64]
[1722434339919,1.88348193,3339.5,3339.3,0.583485]
[1722434340239,1.88348193,3339.6,3339.3,0.583485]
[1722434340443,1.88462427,3339.5,3339.3,0.583485]
[1722434340654,1.88462427,3339.5,3339.0,0.2]
[1722434340655,1.88461241,3339.5,3339.0,0.2]
[1722434340802,1.88461241,3339.2,3339.0,0.2]
[1722434341003,1.88461241,3339.3,3339.0,0.2]
[1722434341447,1.88461241,3339.3,3339.0,3.19485]
[1722434342050,1.88461241,3339.3,3339.0,0.2]
[1722434342343,1.88461241,3339.2,3339.0,0.7835]
[1722434342933,1.88461241,3339.1,3339.0,0.2]
[1722434343136,2.19871448,3339.2,3339.0,0.2]
[1722434343454,0.13072547,3339.1,3339.0,0.2]
[1722434343610,2.59775421,3339.3,3339.0,0.2]
[1722434343806,2.4837,3339.6,3339.0,0.2]
[1722434344156,0.13072944,3339.1,3339.0,0.2]
[1722434344936,0.26145595,3339.1,3339.0,0.2]
[1722434346701,0.13072944,3339.1,3339.0,0.2]
[1722434346908,0.26146758,3339.1,3339.0,0.2]
[1722434350170,0.26147091,3339.1,3339.0,0.2]
[1722434350322,0.39221246,3339.1,3339.0,0.2]
[1722434350820,0.39221246,3339.1,3339.0,0.4]
[1722434351020,3.38702246,3339.1,3339.0,0.4]
[1722434351431,4.34918109,3339.1,3339.0,0.4]
[1722434351669,4.46348052,3339.1,3339.0,0.4]
[1722434351962,1.35437109,3339.1,3339.0,0.4]
[1722434352831,4.46348052,3339.1,3339.0,0.4]
[1722434353218,10.32235897,3339.1,3339.0,0.4]
[1722434353525,9.75959396,3339.1,3339.0,0.4]
[1722434354241,9.49812305,3339.1,3339.0,0.4]
[1722434355946,6.50331305,3339.1,3339.0,0.4]
[1722434356454,6.37256863,3339.1,3339.0,0.4]
[1722434356754,6.50332045,3339.1,3339.0,0.4]
[1722434356938,0.13075182,3339.1,3339.0,0.4]
[1722434358278,6.24249718,3339.1,3339.0,0.4]
[1722434358627,6.24266329,3339.1,3339.0,0.4]
[1722434359421,3.11710147,3339.1,3339.0,0.4]
[1722434359650,3.11728474,3339.1,3339.0,0.4]
[1722434359865,3.24803356,3339.1,3339.0,0.4]
[1722434360165,6.24284356,3339.1,3339.0,0.4]
[1722434360365,7.16659292,3339.1,3339.0,0.4]
[1722434362536,4.04930818,3339.1,3339.0,0.4]
[1722434362739,7.16665737,3339.1,3339.0,0.4]
[1722434364255,7.04411818,3339.1,3339.0,0.4]
[1722434365272,10.03892818,3339.1,3339.0,0.4]
[1722434365576,12.49281818,3339.1,3339.0,0.4]
[1722434365786,12.36206936,3339.1,3339.0,0.4]
[1722434366182,12.49283103,3339.1,3339.0,0.4]
[1722434368823,15.48764103,3339.1,3339.0,0.4]
[1722434369170,15.35687936,3339.1,3339.0,0.4]
[1722434369371,12.36206936,3339.1,3339.0,0.4]
[1722434369603,12.49283931,3339.1,3339.0,0.4]
[1722434371073,16.03764931,3339.1,3339.0,0.4]
[1722434372184,19.03245931,3339.1,3339.0,0.4]
[1722434372396,16.03764931,3339.1,3339.0,0.4]
[1722434372605,16.03764931,3339.1,3337.2,2.64]
[1722434372606,2.99594,3337.9,3337.2,2.64]
[1722434372788,2.99594,3337.9,3336.9,2.99674]
[1722434372789,2.1990307,3337.6,3336.9,2.99674]
[1722434372984,0.13076995,3337.8,3336.8,4.9025]
[1722434372985,1.88498055,3337.1,3336.8,4.9025]
[1722434373188,1.88498055,3337.1,3336.8,7.89937]
[1722434373432,1.88498055,3337.1,3336.8,4.9025]
[1722434373629,5.59360501,3337.8,3336.8,4.9025]
[1722434373630,2.08401125,3337.3,3336.9,0.49025]
[1722434373982,5.59382501,3337.6,3336.9,0.49025]
[1722434374191,0.13080156,3337.5,3336.9,0.49025]
[1722434374386,0.13080156,3337.4,3336.9,0.49025]
[1722434374597,5.59382501,3337.6,3336.9,0.49025]
[1722434374797,0.13080152,3337.5,3337.0,0.539275]
[1722434375034,0.13080152,3337.4,3337.0,0.539275]
[1722434375405,2.59648663,3337.8,3337.0,0.539275]
[1722434375595,2.99585,3338.0,3337.0,0.539275]
[1722434375596,2.59648663,3337.7,3337.0,0.539275]
[1722434375792,0.13079615,3337.6,3337.1,0.5441775]
[1722434376307,5.59246663,3337.8,3337.1,0.5441775]
[1722434376489,0.13079704,3337.7,3337.1,0.5441775]
[1722434376692,0.13079704,3337.6,3337.1,0.5441775]
[1722434376935,2.59648663,3337.8,3337.1,0.5441775]
[1722434376936,2.59648663,3337.9,3337.1,0.5441775]
[1722434377118,3.126774,3337.8,3337.1,0.5441775]
[1722434377434,0.130794,3337.7,3337.1,0.5441775]
[1722434378589,5.59031569,3337.8,3337.1,0.5441775]
[1722434378791,2.1963068,3337.5,3337.1,0.5441775]
[1722434379093,2.1963068,3337.6,3337.1,0.5441775]
[1722434379295,2.1963068,3337.6,3337.2,0.35409575]
[1722434379489,2.1963068,3337.5,3337.1,0.5441775]
[1722434379694,1.88234682,3337.2,3337.1,0.5441775]
[1722434380304,1.88234682,3337.2,3336.8,4.9025]
[1722434380521,1.88234682,3337.1,3336.8,2.64]
[1722434381544,2.99627,3337.5,3336.4,5.6372]
[1722434381691,1.88179969,3337.1,3336.5,0.05993392]
[1722434381895,1.88179969,3337.1,3336.6,0.81099339]
[1722434382197,5.99565,3338.2,3336.6,0.81099339]
[1722434382198,1.88179969,3337.2,3336.8,2.64]
[1722434382396,1.88179969,3337.5,3336.8,5.6967599]
[1722434382943,1.88179969,3337.4,3336.8,2.64]
[1722434383097,2.99599,3337.8,3336.8,2.64]
[1722434383098,1.88179969,3337.3,3336.8,2.64]
[1722434383294,1.88179969,3337.3,3336.9,0.64479934]
[1722434384026,1.88179969,3337.3,3337.2,5.63652]
[1722434384230,1.88179969,3337.8,3337.2,2.64]
[1722434384538,1.88179969,3337.7,3337.2,2.64]
[1722434384834,1.88108748,3337.8,3337.2,5.63646]
[1722434385135,1.88108748,3337.8,3337.3,4.100941]
[1722434385305,1.88108748,3337.9,3337.3,4.100941]
[1722434385512,1.88108748,3337.9,3337.3,1.104581]
[1722434385695,1.88108748,3338.1,3337.6,5.63609]
[1722434388000,1.88167483,3338.4,3338.1,0.57389213]
[1722434388196,1.88167483,3338.5,3338.1,0.57389213]
[1722434389140,1.88167483,3338.4,3338.1,0.57389213]
[1722434389350,1.88167483,3338.3,3338.0,2.64]
[1722434390438,1.88167483,3338.2,3338.0,2.64]
[1722434390642,1.88167483,3338.3,3338.0,2.64]
[1722434390955,1.88239023,3338.3,3338.0,2.64]
[1722434391702,1.88239023,3338.2,3338.0,2.64]
[1722434391926,2.99492,3339.0,3338.1,0.8766553]
[1722434391927,1.88239023,3338.3,3338.1,0.8766553]
[1722434392575,1.88249115,3338.3,3338.1,0.8766553]
[1722434394143,2.99484,3339.1,3338.1,0.8766553]
[1722434394349,1.88263177,3338.2,3338.0,2.64]
[1722434396201,1.88263177,3338.3,3338.0,2.64]
[1722434396402,1.88263177,3338.2,3338.0,2.64]
[1722434397299,1.88291912,3338.3,3338.2,2.99562]
[1722434397501,2.19673897,3338.7,3338.0,5.63573]
[1722434397502,1.88291912,3338.4,3338.0,5.63573]
[1722434397743,1.88291912,3338.3,3338.0,5.63573]
[1722434400357,1.86789912,3338.3,3338.2,2.99562]
[1722434400539,1.88288261,3338.4,3338.0,5.63572]
[1722434400707,1.88288261,3338.4,3338.0,6.426042]
[1722434401107,1.88288261,3338.3,3338.0,2.64]
[1722434401302,1.1576096,3339.2,3337.6,2.64]
[1722434401303,1.88288261,3338.2,3337.6,2.64]
[1722434401522,1.88288261,3338.0,3337.6,2.64]
[1722434401960,1.88288261,3337.9,3337.2,5.63648]
[1722434402102,1.88288261,3337.9,3337.2,2.64]
[1722434402103,1.88288261,3337.6,3337.2,2.64]
[1722434402305,1.88288261,3337.7,3337.6,5.99232]
[1722434402503,1.88288261,3338.1,3338.0,2.9958]
[1722434402761,1.88288261,3338.3,3338.0,2.99577]
[1722434403061,1.88288261,3338.4,3338.1,2.99569]
[1722434403365,2.303,3339.0,3338.2,2.99554]
[1722434403506,1.88289222,3338.6,3338.3,5.63553]
[1722434403708,1.88289222,3338.5,3338.3,2.64]
[1722434404016,2.19670759,3338.5,3337.5,5.6362]
[1722434404221,1.88313597,3338.0,3337.5,2.64]
[1722434404420,1.88313597,3337.8,3337.5,2.64]
[1722434404605,1.88313597,3337.7,3337.5,2.64]
[1722434404808,1.88313597,3337.8,3337.2,1.19789993]
[1722434405006,1.88313597,3337.6,3337.2,2.99647]
[1722434405310,1.88313597,3337.8,3337.5,2.99624]
[1722434405617,1.88313597,3337.8,3337.3,2.99636]
[1722434405830,1.88313597,3337.8,3337.4,2.99633]
[1722434406018,1.88313597,3337.8,3337.5,2.99624]
[1722434406204,1.88313597,3337.8,3337.6,0.74826]
[1722434406412,5.05186084,3338.4,3337.7,2.996]
[1722434406413,1.88341873,3337.9,3337.7,2.996]
[1722434406650,2.457,3338.4,3337.9,2.99583]
[1722434406651,1.88341873,3338.1,3337.9,2.99583]
[1722434406830,1.88341873,3338.3,3338.0,2.64]
[1722434407126,2.3298,3338.8,3338.0,2.64]
[1722434407127,1.88341873,3338.4,3338.0,2.64]
[1722434407349,2.3298,3338.8,3338.0,6.498933]
[1722434407350,1.88341873,3338.3,3338.0,6.498933]
[1722434407539,1.88341873,3338.4,3338.0,3.503183]
[1722434408111,1.88341873,3338.4,3338.1,2.99571]
[1722434408515,1.88341873,3338.6,3338.2,2.99562]
[1722434408759,1.88341873,3338.5,3338.2,2.99562]
[1722434408965,3.0,3339.6,3338.5,2.99527]
[1722434408966,1.88341873,3338.7,3338.5,2.99527]
[1722434409125,1.88341873,3338.8,3338.4,5.63544]
[1722434409327,2.3583,3339.3,3338.4,5.63544]
[1722434409328,2.3583,3339.3,3338.4,5.63542]
[1722434409518,1.88282625,3338.8,3338.4,5.63542]
[1722434409844,1.88282625,3338.8,3338.5,4.16327803]
[1722434410048,1.88282625,3338.8,3338.5,4.16321803]
[1722434410346,1.88282625,3338.9,3338.6,2.99524]
[1722434410549,2.3583,3339.3,3337.4,5.34459]
[1722434410550,1.88282625,3338.7,3337.4,5.34459]
[1722434410749,1.88282625,3338.5,3338.0,5.63573]
[1722434411064,1.88282625,3338.3,3338.1,0.863168]
[1722434411270,1.88282625,3338.3,3338.0,2.64]
[1722434411565,2.19663063,3338.3,3337.6,2.64]
[1722434411714,1.88276821,3338.0,3337.6,2.64]
[1722434411916,1.88276821,3337.8,3337.6,2.64]
[1722434412160,1.88276821,3337.9,3337.6,2.64]
[1722434412370,2.279,3338.5,3337.6,3.652261]
[1722434412567,1.88275413,3338.0,3337.6,6.648411]
[1722434412873,1.88275413,3338.0,3337.6,3.652261]
[1722434413156,1.88275413,3337.8,3337.6,3.652261]
[1722434413370,1.88275413,3337.8,3337.6,2.64]
[1722434413659,1.88275413,3337.9,3337.6,2.64]
[1722434413862,1.88275413,3337.9,3337.7,2.99605]
[1722434414060,1.88275413,3338.1,3337.8,2.99596]
[1722434414264,1.88275413,3338.3,3338.0,2.64]
[1722434414435,1.88275413,3338.3,3338.0,5.63579]
[1722434414636,5.09357054,3339.0,3338.0,5.63579]
[1722434414637,1.88275413,3338.4,3338.2,2.99562]
[1722434414842,5.09357054,3339.0,3338.3,5.63548]
[1722434414843,1.88275413,3338.5,3338.3,5.63548]
[1722434415075,1.88275413,3338.6,3338.3,5.63548]
[1722434415239,1.88275413,3338.7,3338.4,3.858548]
[1722434415421,1.88218558,3338.8,3338.4,0.92302021]
[1722434415770,1.88218558,3338.9,3338.5,2.9953]
[1722434415922,1.88218558,3338.9,3338.6,0.05989854]
[1722434416124,2.4084,3339.4,3338.8,2.64]
[1722434416125,1.88218558,3339.1,3338.8,2.64]
[1722434416325,1.88218558,3339.0,3338.8,2.64]
[1722434416635,1.88218558,3339.2,3338.8,3.56893078]
[1722434416855,1.88218558,3339.2,3339.0,2.9949]
[1722434417021,1.88218558,3339.6,3339.1,0.05988786]
[1722434417218,1.88218558,3339.7,3339.4,2.64]
[1722434417478,1.88218558,3339.7,3339.4,2.69988313]
[1722434417828,1.88218558,3339.6,3339.4,2.64]
[1722434418058,1.88218558,3339.7,3339.4,2.64]
[1722434418363,2.4517,3340.2,3339.4,2.64]
[1722434418578,1.8802981,3339.6,3339.0,2.64]
[1722434418724,1.8802981,3339.4,3339.0,5.63486]
[1722434418925,1.8802981,3339.5,3339.0,2.64]
[1722434419222,1.8802981,3339.4,3339.0,2.64]
[1722434419618,1.8802981,3339.1,3338.6,2.64]
[1722434419874,2.4002,3339.3,3338.6,2.64]
[1722434419875,1.8802981,3338.9,3338.6,2.64]
[1722434420025,1.8802981,3339.1,3338.6,3.203553]
[1722434420223,1.8802981,3339.0,3338.6,2.64]
[1722434420552,1.8802981,3338.8,3338.2,5.64]
[1722434420763,1.8802981,3338.7,3338.2,5.64]
[1722434420957,1.8802981,3338.8,3338.2,5.64]
[1722434421163,1.8802981,3338.8,3338.2,2.64]
[1722434421367,4.8754781,3338.7,3337.8,2.64]
[1722434421568,1.8802981,3338.4,3337.8,2.64]
[1722434421937,1.8802981,3338.3,3337.8,2.64]
[1722434422145,2.4596,3338.6,3337.8,2.64]
[1722434422146,1.8802981,3338.4,3337.8,5.63597]
[1722434422475,2.19368112,3338.7,3338.4,2.99541]
[1722434422476,1.8802981,3338.7,3338.4,2.99541]
[1722434422706,2.59128583,3339.4,3338.4,2.99541]
[1722434422707,1.8802981,3338.9,3338.6,2.64]
[1722434423056,1.8802981,3338.9,3338.4,0.05990145]
[1722434423262,2.99469,3339.3,3338.4,0.05990145]
[1722434423263,1.8802981,3338.7,3338.4,0.05990145]
[1722434423439,1.8802981,3338.7,3338.4,0.62944959]
[1722434423644,1.8802981,3338.9,3338.4,3.62486959]
[1722434423847,1.8802981,3339.0,3338.4,0.62944959]
[1722434424044,1.8802981,3338.8,3338.4,0.05990145]
[1722434424351,2.3806,3338.7,3338.2,2.64]
[1722434424565,1.88138656,3338.6,3338.2,2.64]
[1722434424767,1.88138656,3338.5,3338.2,2.64]
[1722434425339,1.88138656,3338.6,3338.2,2.69990588]
[1722434425744,1.88138656,3338.6,3338.2,2.64]
[1722434425944,1.88138656,3338.6,3338.2,2.6999052]
[1722434426163,1.88138656,3338.5,3338.3,0.05990519]
[1722434426493,1.88138656,3338.5,3338.2,2.69990491]
[1722434426672,1.88138656,3338.5,3338.2,2.64]
[1722434427034,1.88138656,3338.5,3338.0,2.99579]
[1722434427035,1.88138656,3338.5,3337.8,5.64]
[1722434427284,2.3806,3338.7,3337.8,6.732344]
[1722434427485,1.8829708,3338.3,3337.9,2.99588]
[1722434427692,1.8829708,3338.2,3337.8,6.732344]
[1722434427894,1.8829708,3338.1,3337.8,2.64]
[1722434428241,1.8829708,3338.1,3337.8,5.63598]
[1722434428443,1.8829708,3338.0,3337.8,2.64]
[1722434428695,1.8829708,3338.1,3337.8,2.64]
[1722434428981,1.8829708,3338.1,3337.8,5.63591]
[1722434429165,1.8829708,3338.2,3337.9,0.863197]
[1722434429362,1.8829708,3338.0,3337.8,2.64]
[1722434429577,1.8829708,3337.9,3337.8,2.64]
[1722434429748,2.19679927,3338.2,3337.8,2.64]
[1722434430179,2.19679927,3338.1,3337.8,2.64]
[1722434430353,2.3806,3338.7,3337.8,2.69991215]
[1722434430551,1.88482566,3338.0,3337.9,3.05579989]
[1722434430756,1.88482566,3338.1,3337.9,2.99589]
[1722434430955,1.88482566,3338.2,3337.9,0.05991187]
[1722434431139,1.88482566,3338.1,3337.8,2.64]
[1722434431341,1.88482566,3338.0,3337.8,2.64]
[1722434431978,1.88482566,3337.9,3337.8,2.64]
[1722434432182,2.19896327,3338.2,3337.8,2.64]